bitfinex/quotes_ETHUSD_20251011
["timestamp","ask_amount","ask_price","bid_price","bid_amount"]
[1760161115305,1.92,3791.0,3790.3,2.63829802]
[1760161115511,3.06722816,3791.3,3790.1,0.1312]
[1760161115512,2.63768727,3791.2,3790.1,0.1312]
[1760161115679,1.92,3791.2,3790.2,0.6336]
[1760161115877,14.18940108,3791.7,3790.2,0.6336]
[1760161115878,14.18940108,3791.7,3790.3,0.6336]
[1760161116219,2.63796275,3790.9,3790.1,2.63841067]
[1760161116379,1.92,3791.1,3789.9,0.6336]
[1760161116713,2.3496,3791.4,3789.9,0.6336]
[1760161116916,0.4296,3791.4,3789.8,0.4727]
[1760161117122,2.63782249,3791.1,3790.3,2.63831253]
[1760161117631,1.92,3791.2,3790.3,2.63829283]
[1760161117911,1.92,3791.2,3790.5,2.63816367]
[1760161118216,1.92,3791.2,3790.6,2.63809367]
[1760161118382,16.82678443,3791.7,3790.5,2.63815951]
[1760161118383,2.637409,3791.6,3790.5,2.63815951]
[1760161118581,1.92,3791.6,3790.3,0.6336]
[1760161118782,1.92,3791.6,3790.6,2.63803911]
[1760161119093,1.92,3791.2,3790.5,2.63816304]
[1760161119412,1.92,3791.6,3790.3,0.6336]
[1760161119581,2.63740994,3791.6,3790.8,2.63794537]
[1760161119910,2.63740994,3791.6,3790.5,0.6336]
[1760161119911,4.55749454,3791.5,3790.7,2.63802255]
[1760161120078,0.4723,3791.7,3788.2,0.7942654]
[1760161120079,1.92,3791.6,3790.1,0.002]
[1760161120284,2.63795729,3790.9,3790.1,2.64043958]
[1760161120488,2.63782677,3791.0,3790.1,0.002]
[1760161120683,2.63782677,3791.0,3790.2,2.63838319]
[1760161120908,2.63790779,3790.9,3790.2,2.63838319]
[1760161121209,16.82675151,3791.7,3790.1,0.002]
[1760161121210,1.92,3791.6,3790.1,0.002]
[1760161121422,3.10973559,3791.6,3790.2,0.1223]
[1760161121627,3.10973559,3791.6,3790.8,2.63793923]
[1760161121628,2.3923,3791.6,3790.8,2.63793923]
[1760161121916,1.92,3791.3,3790.4,2.63817868]
[1760161122120,2.63733383,3791.8,3790.9,2.63785009]
[1760161122321,1.92,3791.7,3790.3,0.6336]
[1760161122499,2.63736041,3791.7,3790.9,2.63786376]
[1760161122704,1.92,3791.7,3790.5,0.6336]
[1760161122912,14.18940108,3792.5,3791.2,2.63763255]
[1760161122913,1.92,3792.0,3791.2,2.63763255]
[1760161123119,1.92,3791.8,3790.7,0.6336]
[1760161123339,0.41370673,3792.3,3790.8,3.7112656]
[1760161123540,0.4723,3792.5,3791.7,2.63731937]
[1760161123712,0.4723,3792.5,3791.1,2.63775685]
[1760161123898,0.4723,3792.5,3791.7,2.63730335]
[1760161123899,2.63679056,3792.5,3791.7,2.63730335]
[1760161124212,2.63679056,3792.5,3791.4,0.4397]
[1760161124213,3.10918815,3792.4,3790.3,0.4397]
[1760161124415,0.4723,3792.4,3790.4,0.6336]
[1760161124596,2.63735401,3791.7,3790.5,2.63817438]
[1760161124795,1.92,3791.6,3790.9,2.63788134]
[1760161125226,2.63753908,3791.5,3790.7,2.63802472]
[1760161125625,0.4723,3791.8,3790.5,0.6336]
[1760161125826,1.92,3791.8,3791.1,2.63772431]
[1760161126205,2.63671596,3792.6,3791.5,2.63747857]
[1760161126405,2.63692951,3792.3,3791.4,0.6336]
[1760161126619,0.001,3792.9,3791.4,0.6336]
[1760161126817,2.63673884,3792.6,3791.8,2.6372158]
[1760161127010,1.92,3792.5,3791.8,2.6372158]
[1760161127205,3.10887737,3792.8,3791.4,0.6336]
[1760161127206,0.4723,3792.8,3791.9,0.6336]
[1760161127426,2.63753271,3792.9,3792.1,2.6370157]
[1760161127631,2.63657456,3792.8,3791.9,3.27074614]
[1760161127799,2.63657456,3792.8,3792.0,2.63713066]
[1760161128163,0.001,3792.9,3791.8,0.1312]
[1760161128425,2.63709613,3792.1,3791.3,3.2712158]
[1760161128634,2.63698128,3792.3,3791.5,2.63746559]
[1760161129246,2.63698128,3792.3,3791.6,2.6374029]
[1760161129407,0.4723,3792.5,3791.6,2.6374029]
[1760161129738,2.63687594,3792.4,3791.6,2.6374029]
[1760161129909,0.001,3792.9,3791.9,2.63713737]
[1760161129910,2.63662762,3792.8,3791.9,2.63713737]
[1760161130107,0.001,3792.9,3791.6,0.6336]
[1760161130331,1.921,3792.9,3792.2,2.63692652]
[1760161130642,0.001,3792.9,3792.0,3.27070481]
[1760161130844,2.63678543,3792.5,3791.5,3.27107857]
[1760161131021,0.4307,3792.8,3791.7,0.6336]
[1760161131022,2.63686622,3792.4,3791.7,0.6336]
[1760161131220,2.63699171,3792.2,3791.0,2.63781341]
[1760161131428,1.92,3792.1,3790.2,0.1223]
[1760161131614,2.3507,3792.3,3791.4,2.63748985]
[1760161131812,2.3507,3792.3,3791.3,2.6376111]
[1760161131813,2.63706609,3792.1,3791.3,2.6376111]
[1760161132012,4.98763441,3792.3,3791.1,2.6377474]
[1760161132013,2.63723681,3791.9,3791.1,2.6377474]
[1760161132231,2.63721652,3791.9,3791.1,2.63774497]
[1760161132433,2.63713998,3792.0,3791.2,2.63763471]
[1760161132910,2.3507,3792.3,3790.7,0.6336]
[1760161133120,2.63713429,3792.0,3791.2,2.63763105]
[1760161133745,2.63713429,3792.0,3791.3,2.63760276]
[1760161134047,2.63704452,3792.2,3791.4,2.63749036]
[1760161134348,2.33368034,3792.4,3791.6,2.63738848]
[1760161134349,2.63687472,3792.4,3791.6,2.63738848]
[1760161134659,1.92,3792.7,3791.7,2.6372742]
[1760161135220,0.41364871,3792.8,3792.3,2.63688497]
[1760161135517,16.82663932,3793.3,3792.1,0.6336]
[1760161135718,0.001,3793.3,3791.9,0.6336]
[1760161135913,2.63630704,3793.2,3792.5,2.63677118]
[1760161136155,2.63723398,3793.3,3792.5,2.63677118]
[1760161136344,1.92,3793.2,3792.6,2.63670595]
[1760161136561,0.001,3793.3,3792.1,0.1208]
[1760161136743,2.63645597,3793.0,3792.2,2.63692769]
[1760161136940,2.63636325,3793.2,3792.3,2.63689321]
[1760161137142,2.63650139,3793.0,3792.1,3.27060613]
[1760161137340,2.63649265,3793.0,3792.2,2.63696605]
[1760161137545,3.06706604,3793.1,3792.3,2.63685994]
[1760161137947,2.63636604,3793.1,3792.3,2.63685994]
[1760161138447,0.001,3793.3,3792.2,0.6336]
[1760161138642,2.63636833,3793.1,3792.3,2.63686514]
[1760161138874,2.63630056,3793.2,3792.4,2.63684491]
[1760161139065,2.63638261,3793.1,3792.2,3.2705232]
[1760161139579,2.6364587,3793.0,3792.2,3.2705232]
[1760161139751,2.6364587,3793.0,3792.3,2.63691765]
[1760161139953,2.63636183,3793.2,3792.3,2.63691765]
[1760161140153,2.63631199,3793.2,3792.4,2.63684711]
[1760161140354,0.414569,3793.3,3792.4,3.27045052]
[1760161140554,0.414569,3793.3,3792.8,2.63657456]
[1760161140755,0.414569,3793.3,3792.8,3.27017456]
[1760161140756,0.001,3793.3,3792.8,3.27017456]
[1760161140983,0.001,3793.3,3793.2,3.26989653]
[1760161141353,0.001,3793.7,3793.6,2.63601855]
[1760161141758,0.001,3793.7,3793.6,3.85521855]
[1760161142579,0.001,3793.7,3793.6,5.64401855]
[1760161142781,0.001,3793.7,3793.6,5.77521855]
[1760161144369,0.001,3793.7,3793.6,5.64401855]
[1760161149192,0.001,3793.7,3793.6,4.55601855]
[1760161149397,0.001,3793.7,3792.2,2.63699171]
[1760161149568,0.001,3793.7,3790.4,16.82963662]
[1760161149569,0.001,3793.7,3792.9,0.4612]
[1760161150175,0.001,3793.7,3792.4,0.4612]
[1760161150384,0.001,3793.7,3792.5,0.6336]
[1760161150691,0.001,3793.7,3792.8,2.63657456]
[1760161150895,0.001,3793.7,3792.7,1.92]
[1760161150896,0.001,3793.7,3792.4,0.4612]
[1760161151091,0.001,3793.7,3793.0,2.63637731]
[1760161151297,2.63700688,3793.7,3792.4,0.4612]
[1760161151495,2.63700688,3793.7,3792.7,0.6336]
[1760161151701,0.4711,3793.6,3791.9,0.4612]
[1760161152399,2.63636723,3793.1,3792.3,0.6336]
[1760161152598,0.001,3793.7,3792.9,2.63647041]
[1760161152799,0.001,3793.7,3792.7,0.6336]
[1760161153007,0.001,3793.7,3793.1,2.63636238]
[1760161153300,0.001,3793.7,3793.2,2.63629566]
[1760161153473,0.001,3793.7,3793.3,2.63619077]
[1760161154302,0.001,3793.7,3793.2,2.63629327]
[1760161154507,0.001,3793.7,3793.3,2.63620638]
[1760161154686,0.001,3793.7,3793.1,2.63630397]
[1760161154884,0.001,3793.7,3792.9,0.1312]
[1760161155084,0.001,3793.7,3792.6,0.7648]
[1760161155297,0.001,3793.7,3792.7,0.4612]
[1760161155490,0.001,3793.7,3792.8,0.6336]
[1760161156009,0.001,3793.7,3793.0,2.63641076]
[1760161156992,0.001,3793.7,3793.2,2.63624781]
[1760161157205,0.001,3793.7,3793.6,2.63601855]
[1760161157410,0.001,3793.7,3793.6,0.6336]
[1760161157612,0.001,3793.7,3792.4,0.4612]
[1760161157782,0.001,3793.7,3792.6,0.4632]
[1760161158091,0.001,3793.7,3792.9,2.63650504]
[1760161158296,0.001,3793.7,3792.6,0.002]
[1760161158476,2.63622028,3793.4,3792.7,0.6336]
[1760161158677,0.001,3793.7,3792.6,0.002]
[1760161158880,2.6363515,3793.2,3792.6,0.002]
[1760161159080,2.63641945,3793.1,3792.6,0.002]
[1760161159286,0.4711,3793.6,3792.6,0.002]
[1760161159527,2.63635266,3793.2,3792.6,0.002]
[1760161159679,2.63615672,3793.5,3792.6,0.002]
[1760161159878,0.4711,3793.6,3792.6,2.63870036]
[1760161160103,0.001,3793.7,3793.1,2.63631643]
[1760161160327,0.001,3793.7,3792.6,0.002]
[1760161160328,0.001,3793.7,3793.3,0.6336]
[1760161160620,0.001,3793.7,3793.1,0.6336]
[1760161160787,0.001,3793.7,3793.6,3.26961855]
[1760161161217,0.001,3793.7,3793.6,3.73081855]
[1760161161529,0.001,3793.7,3793.6,0.6336]
[1760161161682,0.001,3793.7,3793.1,0.6336]
[1760161161882,0.001,3793.7,3793.3,2.63622197]
[1760161162222,0.001,3793.7,3793.5,2.63607323]
[1760161162914,0.001,3793.7,3793.6,3.73081855]
[1760161163214,0.001,3793.7,3793.6,3.26961855]
[1760161163412,0.001,3793.7,3793.6,5.65081855]
[1760161163819,0.001,3793.7,3793.6,3.73081855]
[1760161164127,0.001,3793.7,3793.5,2.63603017]
[1760161164611,0.001,3793.7,3793.6,3.73081855]
[1760161165004,0.001,3793.7,3793.6,3.26961855]
[1760161165590,0.001,3793.7,3793.3,0.6336]
[1760161165790,0.001,3793.7,3793.3,1.0948]
[1760161166100,0.001,3793.7,3792.9,0.4612]
[1760161166411,0.001,3793.7,3793.2,0.6336]
[1760161167123,0.001,3793.7,3793.5,2.63607987]
[1760161167284,0.001,3793.7,3793.3,0.4612]
[1760161167285,0.001,3793.7,3793.3,3.09740737]
[1760161167484,0.001,3793.7,3793.5,2.63607186]
[1760161167698,0.001,3793.7,3793.4,0.4612]
[1760161167892,0.001,3793.7,3793.2,0.6336]
[1760161168185,0.001,3793.7,3793.1,0.1312]
[1760161168390,0.001,3793.7,3792.8,2.63653586]
[1760161168391,2.63699861,3793.7,3792.8,2.63653586]
[1760161168706,2.63699861,3793.7,3792.7,2.63658171]
[1760161168901,2.63695823,3793.7,3792.8,2.63655863]
[1760161169294,0.001,3793.7,3793.0,2.63640942]
[1760161169500,0.001,3793.7,3792.6,0.6356]
[1760161169819,0.001,3793.7,3792.9,2.63643609]
[1760161170515,0.001,3793.7,3792.6,0.002]
[1760161170717,0.6956,3793.7,3792.6,0.002]
[1760161171018,2.63611708,3793.5,3792.6,2.63864951]
[1760161171313,0.2245,3793.7,3792.6,0.002]
[1760161171515,2.63637711,3793.1,3792.6,0.002]
[1760161172113,2.6364448,3793.0,3792.6,0.002]
[1760161172287,0.4711,3793.1,3792.6,0.002]
[1760161172494,0.2245,3793.7,3792.6,0.002]
[1760161172495,0.001,3793.7,3792.8,0.6336]
[1760161172823,0.001,3793.7,3792.6,0.002]
[1760161173020,1.921,3793.7,3792.9,2.6364382]
[1760161173224,1.921,3793.7,3793.0,2.63641605]
[1760161173389,0.001,3793.7,3793.0,2.63641605]
[1760161174118,0.001,3793.7,3793.1,2.63634713]
[1760161174424,0.001,3793.7,3793.1,2.63636603]
[1760161174790,0.001,3793.7,3793.4,2.63611651]
[1760161175393,0.001,3793.7,3793.3,3.26982287]
[1760161175817,0.001,3793.7,3792.6,0.002]
[1760161176011,0.001,3793.7,3793.1,0.6336]
[1760161176208,0.001,3793.7,3793.0,0.002]
[1760161176512,2.63612661,3793.5,3793.0,0.002]
[1760161176711,2.63623538,3793.3,3793.0,0.002]
[1760161176913,0.001,3793.7,3793.0,0.002]
[1760161176914,2.63629721,3793.2,3793.0,0.002]
[1760161177302,2.63636603,3793.1,3793.0,0.002]
[1760161177801,2.63630995,3793.2,3793.0,0.002]
[1760161178008,2.63636603,3793.1,3793.0,0.002]
[1760161178327,0.4711,3793.4,3793.0,0.002]
[1760161178527,0.001,3793.7,3793.0,2.63842672]
[1760161178846,0.001,3793.7,3793.0,0.002]
[1760161179010,0.001,3793.7,3793.3,2.63621838]
[1760161179337,2.63591904,3793.8,3793.0,0.6356]
[1760161179640,0.4364,3794.1,3793.0,0.6356]
[1760161179797,2.3564,3794.1,3793.0,0.002]
[1760161180002,0.4364,3794.1,3793.0,0.002]
[1760161180192,3.07207526,3794.1,3793.4,2.63614939]
[1760161180434,3.07207526,3794.1,3793.1,2.63636603]
[1760161180435,2.63574646,3794.0,3793.1,2.63636603]
[1760161180742,0.001,3794.1,3793.3,3.26982703]
[1760161181094,0.001,3794.1,3793.3,0.6336]
[1760161181296,0.001,3794.1,3793.9,2.63580854]
[1760161181702,0.001,3794.1,3793.5,0.7648]
[1760161181918,0.001,3794.1,3793.6,2.63600611]
[1760161182119,0.001,3794.1,3793.0,0.002]
[1760161182317,0.001,3794.1,3793.4,2.63614548]
[1760161182523,0.001,3794.1,3793.4,2.6360882]
[1760161182745,0.001,3794.1,3793.0,0.002]
[1760161182931,2.63580959,3794.0,3793.0,0.002]
[1760161183211,0.001,3794.1,3793.0,0.002]
[1760161183212,2.63599866,3793.7,3793.0,0.002]
[1760161183408,3.29232091,3793.9,3793.0,0.002]
[1760161183608,2.63603602,3793.6,3793.0,0.002]
[1760161183841,2.63624511,3793.3,3793.0,0.002]
[1760161184052,2.63630117,3793.2,3793.0,0.002]
[1760161184541,0.4354,3793.1,3793.0,0.002]
[1760161184752,2.63616203,3793.4,3793.0,0.002]
[1760161184945,0.4354,3793.1,3793.0,0.002]
[1760161185151,2.63628705,3793.3,3793.0,0.002]
[1760161185448,2.63615679,3793.5,3793.0,0.002]
[1760161185745,2.63620258,3793.4,3793.0,0.002]
[1760161185908,0.4354,3793.8,3793.0,0.002]
[1760161186114,2.63615334,3793.5,3793.0,0.002]
[1760161187128,3.07129301,3793.8,3793.0,0.002]
[1760161187331,2.63604949,3793.6,3793.0,0.002]
[1760161187531,2.63609981,3793.5,3793.0,0.002]
[1760161187746,0.2211,3793.9,3793.0,2.63843037]
[1760161187912,2.63578892,3794.0,3793.0,2.63843037]
[1760161188112,2.63593571,3793.8,3793.0,2.63843037]
[1760161188513,0.001,3794.1,3793.4,2.63610564]
[1760161188714,0.001,3794.1,3793.0,0.6356]
[1760161189142,2.63575985,3794.0,3793.3,0.6336]
[1760161189566,0.001,3794.1,3793.0,0.002]
[1760161189741,2.63581011,3793.9,3793.0,2.63839545]
[1760161189946,2.63593287,3793.8,3793.0,2.63839545]
[1760161190572,2.63595303,3793.7,3793.0,2.63843369]
[1760161190929,2.63595303,3793.7,3793.0,0.002]
[1760161191557,2.63589587,3793.8,3793.0,2.63842423]
[1760161191732,2.63589587,3793.8,3793.0,0.002]
[1760161191942,2.6359596,3793.7,3793.0,2.63841957]
[1760161192261,2.63589601,3793.8,3793.1,2.63635761]
[1760161192670,2.63589601,3793.8,3793.0,2.63842204]
[1760161193331,2.63615287,3793.5,3793.0,0.002]
[1760161193727,3.09135287,3793.5,3793.0,0.002]
[1760161195161,0.4552,3793.5,3793.0,0.002]
[1760161195334,2.63615753,3793.4,3793.0,0.002]
[1760161195839,3.09130024,3793.5,3793.0,0.002]
[1760161196035,2.6361892,3793.4,3793.0,0.002]
[1760161196450,3.09130407,3793.5,3793.0,0.002]
[1760161196658,0.001,3793.8,3793.0,0.002]
[1760161196870,0.4552,3793.3,3793.0,0.002]
[1760161197071,2.63636603,3793.1,3793.0,0.002]
[1760161197367,4.55636603,3793.1,3793.0,0.002]
[1760161197763,5.01156603,3793.1,3793.0,0.002]
[1760161206786,0.001,3794.1,3793.0,0.002]
[1760161206986,0.001,3794.1,3793.0,0.6356]
[1760161207176,0.001,3794.1,3793.1,0.5713]
[1760161207486,2.63668233,3794.1,3793.3,2.63620804]
[1760161207687,2.63668233,3794.1,3793.4,0.6336]
[1760161208663,2.63668233,3794.1,3793.1,3.207666]
[1760161208664,2.63668233,3794.1,3793.2,0.6336]
[1760161208869,2.6358403,3793.9,3793.2,0.6336]
[1760161209073,2.63594907,3793.7,3793.2,0.6336]
[1760161209278,2.63594907,3793.7,3793.0,0.002]
[1760161209279,2.63594907,3793.7,3793.0,0.6356]
[1760161209591,2.63607139,3793.6,3793.0,0.002]
[1760161209783,2.63595034,3793.7,3793.0,0.002]
[1760161209963,0.001,3794.1,3793.0,0.002]
[1760161210289,0.4568,3793.8,3793.0,0.002]
[1760161210670,2.63636603,3793.1,3793.0,0.002]
[1760161211577,3.09216603,3793.1,3793.0,0.002]
[1760161211782,5.01216603,3793.1,3793.0,0.002]
[1760161212180,4.55636603,3793.1,3793.0,0.002]
[1760161213571,0.001,3793.8,3793.0,0.002]
[1760161213899,4.55623796,3793.3,3793.0,0.002]
[1760161214197,1.92,3793.3,3793.0,0.002]
[1760161214583,4.55615184,3793.5,3793.0,0.002]
[1760161214778,1.92,3793.3,3793.0,0.002]
[1760161214980,0.001,3793.8,3793.0,0.002]
[1760161215186,0.001,3793.8,3793.2,0.6336]
[1760161215479,0.001,3793.8,3793.3,0.4659]
[1760161215696,0.001,3793.8,3793.2,0.6336]
[1760161215897,0.001,3793.8,3793.0,0.002]
[1760161216402,2.63636603,3793.1,3793.0,0.002]
[1760161216982,5.01216603,3793.1,3793.0,0.002]
[1760161217396,2.63664407,3792.7,3792.6,0.002]
[1760161217579,2.63692218,3792.3,3792.2,1e-08]
[1760161217775,4.55692218,3792.3,3792.2,1e-08]
[1760161218101,4.55692218,3792.3,3790.3,0.4659]
[1760161218102,2.63720034,3791.9,3790.3,0.4659]
[1760161218302,2.63720034,3791.9,3790.2,0.1223]
[1760161218303,4.55720034,3791.9,3790.2,0.1223]
[1760161218505,5.01300034,3791.9,3790.2,0.5882]
[1760161218705,5.01300034,3791.9,3789.5,0.2158]
[1760161219008,4.55768727,3791.2,3789.5,0.6817]
[1760161219184,4.55768727,3791.2,3789.4,0.002]
[1760161219185,1.92,3791.1,3789.4,0.002]
[1760161219507,4.55789601,3790.9,3789.4,0.002]
[1760161219878,5.01369601,3790.9,3789.4,0.002]
[1760161220101,5.01369601,3790.9,3789.4,2.64093567]
[1760161220401,5.01369601,3790.9,3789.4,0.002]
[1760161220793,1.92,3790.9,3789.8,0.6356]
[1760161221105,2.63774706,3791.2,3790.1,0.1243]
[1760161221305,2.63776711,3791.1,3790.2,2.63832403]
[1760161221488,0.4558,3791.1,3790.1,0.002]
[1760161221684,4.55789601,3790.9,3790.1,0.002]
[1760161222091,5.01369601,3790.9,3790.1,0.002]
[1760161222606,5.01369601,3790.9,3790.1,2.64044541]
[1760161222607,1.92,3790.9,3790.1,2.64044541]
[1760161222825,4.55789601,3790.9,3790.1,0.002]
[1760161222991,1.92,3790.9,3790.1,0.002]
[1760161223185,1.92,3790.9,3790.1,0.1243]
[1760161223404,4.55789601,3790.9,3790.1,0.7579]
[1760161223612,1.92,3790.9,3790.2,2.63837635]
[1760161223980,1.92,3790.9,3790.1,0.6356]
[1760161224183,1.92,3790.9,3790.3,2.63830071]
[1760161224489,1.92,3790.9,3790.1,0.6356]
[1760161224490,1.92,3790.9,3790.4,2.64018655]
[1760161224700,3.09306351,3791.9,3790.4,0.4679]
[1760161225011,2.63742151,3791.6,3790.8,3.10580767]
[1760161225209,0.4558,3792.3,3791.0,2.63782643]
[1760161225388,2.63702084,3792.2,3791.2,2.63762566]
[1760161225594,2.63678312,3792.5,3791.0,2.63776009]
[1760161225905,2.63702391,3792.2,3791.3,2.63756238]
[1760161226108,2.63709041,3792.1,3791.0,2.63782643]
[1760161226286,0.4558,3792.6,3790.8,0.4679]
[1760161226287,2.63699514,3792.2,3791.4,2.63754231]
[1760161226490,0.4558,3792.6,3791.0,0.6336]
[1760161226491,2.3758,3792.6,3791.0,0.6336]
[1760161226704,18.74782409,3792.7,3791.0,3.27138672]
[1760161226705,2.63725945,3791.9,3791.0,3.27138672]
[1760161226909,1.92,3792.4,3790.8,0.4679]
[1760161226910,2.63714205,3792.0,3790.9,0.6336]
[1760161227109,2.63706865,3792.1,3791.3,2.63761529]
[1760161227311,2.63713908,3792.0,3790.9,0.6336]
[1760161227520,2.63721264,3791.9,3791.0,2.6378166]
[1760161227827,2.63733945,3791.7,3790.9,2.63784114]
[1760161228197,2.63741147,3791.6,3790.9,2.63784114]
[1760161228603,0.4558,3792.3,3790.8,2.63992184]
[1760161228996,2.63740156,3791.7,3790.8,2.63992184]
[1760161229202,0.4558,3792.3,3790.8,2.63992184]
[1760161229398,1.92,3792.1,3790.8,0.002]
[1760161229604,2.63779764,3791.1,3790.8,0.002]
[1760161230009,0.4558,3791.6,3790.8,0.002]
[1760161230214,2.63789601,3790.9,3790.8,0.002]
[1760161230416,4.55789601,3790.9,3790.8,0.002]
[1760161230602,5.01369601,3790.9,3790.8,0.002]
[1760161238547,4.39369601,3790.9,3790.8,0.002]
[1760161238746,3.09369601,3790.9,3790.8,0.002]
[1760161240320,4.55817438,3790.5,3790.4,0.002]
[1760161240727,5.01257438,3790.5,3790.4,0.002]
[1760161244432,19.20373682,3790.5,3790.4,0.002]
[1760161244756,19.20373682,3790.5,3785.7,2.64146345]
[1760161244757,4.55949743,3788.6,3785.7,2.64146345]
[1760161244956,4.55949743,3788.6,3787.1,0.438]
[1760161245124,5.01389743,3788.6,3787.1,0.438]
[1760161245319,5.01389743,3788.6,3787.1,0.002]
[1760161246258,5.01389743,3788.6,3787.1,2.64248354]
[1760161246426,5.01389743,3788.6,3787.1,0.002]
[1760161246750,5.01389743,3788.6,3787.2,2.64045337]
[1760161247219,5.01389743,3788.6,3787.1,0.002]
[1760161248525,5.01389743,3788.6,3788.1,0.002]
[1760161249422,2.63977614,3788.2,3788.1,1e-08]
[1760161249623,2.63977614,3788.2,3787.1,0.002]
[1760161249624,2.64047317,3787.2,3787.1,0.002]
[1760161249853,1.92,3786.9,3785.1,2.64190745]
[1760161250065,2.64069766,3786.9,3785.6,2.64158851]
[1760161250225,0.4544,3787.1,3785.8,0.6336]
[1760161250635,2.3891,3787.0,3785.3,0.6336]
[1760161250931,0.4691,3786.9,3783.8,0.45010001]
[1760161251130,1.92,3786.5,3784.1,0.4501]
[1760161251431,0.4691,3786.9,3786.1,2.6412262]
[1760161251632,0.2163,3787.3,3785.9,2.64136162]
[1760161251633,2.6054,3787.3,3785.9,2.64136162]
[1760161251846,3.10937123,3787.5,3786.1,2.76202849]
[1760161252023,16.83085807,3788.4,3786.2,0.4501]
[1760161252024,1.92,3787.9,3786.2,0.4501]
[1760161252224,2.64038222,3787.4,3786.1,0.7544]
[1760161252426,0.4691,3787.8,3786.1,0.1208]
[1760161252629,0.4691,3787.8,3785.7,0.6336]
[1760161252942,1.92,3788.1,3784.9,0.4501]
[1760161252943,2.5536,3787.6,3784.9,0.4501]
[1760161253143,0.6336,3787.3,3784.9,0.4501]
[1760161253344,0.6336,3787.3,3784.4,0.2158]
[1760161253345,1.92,3786.9,3784.4,0.2158]
[1760161253543,0.4691,3786.8,3784.4,0.2158]
[1760161253838,2.64145465,3785.8,3784.7,2.64217492]
[1760161254157,2.64158918,3785.6,3784.4,0.02792579]
[1760161254321,0.6968,3785.7,3784.4,0.02792579]
[1760161254322,2.64194317,3785.1,3784.4,0.02792579]
[1760161254655,0.4691,3785.5,3784.4,0.02792579]
[1760161254854,3.11078087,3785.5,3784.4,0.02792579]
[1760161255049,0.4691,3785.5,3784.4,0.02792579]
[1760161255349,2.64201681,3785.0,3784.4,0.02792579]
[1760161255551,0.4691,3784.9,3784.4,0.02792579]
[1760161256057,0.4691,3784.8,3784.4,0.02792579]
[1760161256356,0.2277,3785.7,3784.4,0.02792579]
[1760161256357,0.4691,3785.4,3784.4,0.02792579]
[1760161256556,0.4691,3784.8,3784.4,0.02792579]
[1760161256976,2.6420549,3785.0,3784.4,0.02792579]
[1760161257140,0.4691,3784.7,3784.4,0.02792579]
[1760161257881,1.92,3784.9,3784.4,0.02792579]
[1760161257882,0.4691,3784.6,3784.4,0.02792579]
[1760161258067,4.56235698,3784.5,3784.4,0.02792579]
[1760161258448,5.03145698,3784.5,3784.4,0.02792579]
[1760161258654,2.3891,3784.5,3784.4,0.02792579]
[1760161258855,5.03145698,3784.5,3784.4,0.02792579]
[1760161259171,0.4691,3785.0,3784.4,0.02792579]
[1760161259859,0.2277,3786.0,3784.4,0.02792579]
[1760161260048,2.64160104,3785.6,3784.5,0.6336]
[1760161260350,0.2277,3786.0,3784.5,0.6336]
[1760161260351,2.3891,3785.5,3784.5,0.6336]
[1760161260552,0.2277,3786.0,3784.5,0.6336]
[1760161260746,2.3891,3785.7,3784.9,2.64206235]
[1760161260945,0.4691,3786.4,3785.1,0.6336]
[1760161261170,0.4691,3786.3,3784.8,0.6336]
[1760161261365,0.4691,3786.2,3784.4,0.02792579]
[1760161261567,2.64187494,3785.2,3784.4,0.02792579]
[1760161261769,2.6168,3785.4,3784.6,2.64226753]
[1760161261974,2.6168,3785.4,3784.4,0.02792579]
[1760161261975,2.64152747,3785.7,3784.5,0.6336]
[1760161262152,1.92,3785.4,3784.5,3.27595366]
[1760161262358,0.4691,3785.8,3784.5,0.6336]
[1760161262562,1.92,3785.2,3784.5,0.6336]
[1760161262776,2.64189263,3785.2,3784.4,0.02792579]
[1760161263092,1.92,3785.3,3784.4,0.02792579]
[1760161263296,2.3891,3785.7,3784.5,2.64235698]
[1760161263454,0.4691,3786.3,3784.6,0.6336]
[1760161263654,2.64103758,3786.4,3784.9,2.64207772]
[1760161263957,0.4691,3786.4,3785.2,0.6336]
[1760161264172,0.4691,3786.4,3784.7,3.09230744]
[1760161264173,2.6406917,3786.9,3785.3,1.0837]
[1760161264376,2.64102681,3786.5,3785.3,0.4501]
[1760161264717,2.64085755,3786.7,3785.3,3.27537473]
[1760161265007,1.92,3786.8,3785.3,0.6336]
[1760161265197,0.4691,3786.9,3785.3,0.6336]
[1760161265408,0.4691,3787.5,3785.5,0.6336]
[1760161265574,0.4691,3787.9,3786.3,0.6336]
[1760161265775,2.64005915,3787.8,3786.3,0.6336]
[1760161266103,0.001,3787.6,3786.2,0.1208]
[1760161266403,0.001,3787.6,3784.7,0.002]
[1760161266404,1.92,3787.3,3784.7,0.002]
[1760161266695,0.4691,3787.2,3785.7,0.6336]
[1760161266901,14.19216244,3787.6,3785.2,0.4501]
[1760161266902,1.92,3786.4,3785.6,0.6336]
[1760161267278,1.92,3786.4,3785.6,3.27515831]
[1760161267469,2.3891,3786.7,3785.8,2.64139186]
[1760161267669,1.92,3786.5,3785.6,2.64156987]
[1760161267920,1.92,3786.8,3785.7,2.6415068]
[1760161268116,1.92,3786.8,3785.9,2.64131613]
[1760161268512,2.3582,3787.5,3786.0,0.6336]
[1760161268715,1.92,3786.8,3786.0,0.6336]
[1760161268895,1.92,3787.0,3786.0,0.6336]
[1760161269096,1.92,3787.0,3785.7,2.64150236]
[1760161269097,1.92,3787.0,3785.8,0.6336]
[1760161269291,1.92,3786.6,3785.6,0.6336]
[1760161269492,1.92,3786.8,3785.8,0.6336]
[1760161269722,0.4382,3787.2,3786.0,0.6336]